[Event "*** Titled Tuesday Blitz"]
[Site "Chess.com"]
[Date "2020.05.12"]
[Round "8"]
[White "doons21"]
[Black "DLR7"]
[Result "0-1"]
[WhiteElo "2533"]
[BlackElo "2720"]
[TimeControl "180+1"]
[EndTime "11:33:29 PDT"]
[Termination "DLR7 won by resignation"]

1. e4 {[%clk 0:03:00.9]} 1... c5 {[%clk 0:02:59.9]} 2. c3 {[%clk 0:03:00.5]}
2... Nc6 {[%clk 0:03:00]} 3. d4 {[%clk 0:03:00.2]} 3... cxd4 {[%clk 0:03:00.9]}
4. cxd4 {[%clk 0:03:01.1]} 4... d5 {[%clk 0:03:01.5]} 5. exd5 {[%clk 0:03:01.2]}
5... Qxd5 {[%clk 0:03:02.4]} 6. Nf3 {[%clk 0:03:01.8]} 6... e5 {[%clk
0:02:57.1]} 7. Nxe5 {[%clk 0:03:00.4]} 7... Nxe5 {[%clk 0:02:53.6]} 8. dxe5
{[%clk 0:03:00.6]} 8... Qxe5+ {[%clk 0:02:54.3]} 9. Be3 {[%clk 0:02:55.2]} 9...
Qxb2 {[%clk 0:02:37.6]} 10. Nd2 {[%clk 0:02:51.2]} 10... Bd7 {[%clk 0:02:32.1]}
11. Rb1 {[%clk 0:02:38.9]} 11... Qe5 {[%clk 0:02:24.3]} 12. Rxb7 {[%clk
0:02:26]} 12... Nf6 {[%clk 0:02:22]} 13. Nb3 {[%clk 0:01:49]} 13... Bc6 {[%clk
0:02:13.6]} 14. a4 {[%clk 0:01:26.1]} 14... Rd8 {[%clk 0:02:07.1]} 15. Nd4
{[%clk 0:01:26.5]} 15... Rxd4 {[%clk 0:01:53.1]} 16. Qxd4 {[%clk 0:01:25.9]}
16... Qxd4 {[%clk 0:01:50.1]} 17. Bxd4 {[%clk 0:01:26.8]} 17... Bxb7 {[%clk
0:01:49.3]} 18. Bb5+ {[%clk 0:01:27.7]} 18... Kd8 {[%clk 0:01:48.9]} 19. Bxa7
{[%clk 0:01:28.6]} 19... Bb4+ {[%clk 0:01:47.5]} 20. Ke2 {[%clk 0:01:29]} 20...
Re8+ {[%clk 0:01:47.4]} 21. Kd3 {[%clk 0:01:28.5]} 21... Re6 {[%clk 0:01:39.4]}
22. Kc4 {[%clk 0:01:26.1]} 22... Be7 {[%clk 0:01:35.1]} 23. Rd1+ {[%clk
0:01:24.7]} 23... Rd6 {[%clk 0:01:34]} 24. Bb6+ {[%clk 0:01:15.7]} 24... Kc8
{[%clk 0:01:30.9]} 25. Rxd6 {[%clk 0:01:16.1]} 25... Bxd6 {[%clk 0:01:30.6]} 26.
g3 {[%clk 0:01:08.7]} 26... Nd7 {[%clk 0:01:14.6]} 27. Bd4 {[%clk 0:01:04.3]}
27... f6 {[%clk 0:01:12.8]} 28. f4 {[%clk 0:01:00]} 28... Bc7 {[%clk 0:01:09.4]}
29. Kb4 {[%clk 0:00:49]} 29... Bd6+ {[%clk 0:01:05.6]} 30. Kc4 {[%clk
0:00:48.5]} 30... Nb8 {[%clk 0:01:04.5]} 31. Kb3 {[%clk 0:00:42.5]} 31... Bd5+
{[%clk 0:01:02.3]} 32. Kc3 {[%clk 0:00:41.5]} 32... Nc6 {[%clk 0:01:02.4]} 33.
Bb6 {[%clk 0:00:34.4]} 33... Kb7 {[%clk 0:00:57.3]} 34. Bf2 {[%clk 0:00:34.8]}
34... Bb4+ {[%clk 0:00:55.2]} 35. Kd3 {[%clk 0:00:32.2]} 35... Ba5 {[%clk
0:00:55.4]} 36. g4 {[%clk 0:00:31.7]} 36... Bb6 {[%clk 0:00:55.5]} 37. Be1
{[%clk 0:00:31]} 37... Be6 {[%clk 0:00:52.7]} 38. g5 {[%clk 0:00:30]} 38... Bf5+
{[%clk 0:00:52.5]} 39. Kc4 {[%clk 0:00:26.3]} 39... fxg5 {[%clk 0:00:52.8]} 40.
fxg5 {[%clk 0:00:26.2]} 40... Be6+ {[%clk 0:00:52.1]} 41. Kd3 {[%clk 0:00:23.9]}
41... Bd5 {[%clk 0:00:49.3]} 42. Bc3 {[%clk 0:00:23.2]} 42... g6 {[%clk
0:00:48.7]} 43. Be1 {[%clk 0:00:20.5]} 43... Bc7 {[%clk 0:00:46.9]} 44. h4
{[%clk 0:00:20.4]} 44... Be6 {[%clk 0:00:46.4]} 45. Ke4 {[%clk 0:00:20.4]} 45...
Bf5+ {[%clk 0:00:46.6]} 46. Kd5 {[%clk 0:00:20.8]} 46... Ne7+ {[%clk 0:00:46.6]}
47. Kd4 {[%clk 0:00:20.9]} 47... Nc6+ {[%clk 0:00:44.5]} 48. Kc5 {[%clk
0:00:21]} 48... Ne5 {[%clk 0:00:43.2]} 49. a5 {[%clk 0:00:20.5]} 49... Nd3+
{[%clk 0:00:35.8]} 50. Bxd3 {[%clk 0:00:19.5]} 50... Bxd3 {[%clk 0:00:36.7]} 51.
Kd5 {[%clk 0:00:19]} 51... Ka6 {[%clk 0:00:30.5]} 52. Ke6 {[%clk 0:00:19]} 52...
Bxa5 {[%clk 0:00:28.9]} 53. Bxa5 {[%clk 0:00:17.9]} 53... Kxa5 {[%clk
0:00:28.8]} 54. Kf7 {[%clk 0:00:18.5]} 54... Be2 {[%clk 0:00:28.9]} 55. Kg7
{[%clk 0:00:16.2]} 55... Bh5 {[%clk 0:00:29.8]} 56. Kxh7 {[%clk 0:00:17.1]}
56... Kb5 {[%clk 0:00:30.4]} 57. Kg7 {[%clk 0:00:18]} 57... Kc4 {[%clk 0:00:31]}
58. Kf6 {[%clk 0:00:18.9]} 58... Kd4 {[%clk 0:00:31.5]} 59. Ke6 {[%clk
0:00:18.9]} 59... Ke4 {[%clk 0:00:32.4]} 60. Kd6 {[%clk 0:00:19.1]} 60... Kf4
{[%clk 0:00:33.3]} 61. Kd5 {[%clk 0:00:20]} 61... Kg4 {[%clk 0:00:34.1]} 62. Ke5
{[%clk 0:00:20.2]} 62... Kxh4 {[%clk 0:00:35]} 63. Kf4 {[%clk 0:00:20.3]} 63...
Kh3 {[%clk 0:00:35.5]} 64. Ke3 {[%clk 0:00:20.4]} 64... Kg4 {[%clk 0:00:36.4]}
0-1

[Event "*** Titled Tuesday Blitz"]
[Site "Chess.com"]
[Date "2020.05.12"]
[Round "8"]
[White "Andrei_Belozerov"]
[Black "anon102030"]
[Result "0-1"]
[WhiteElo "2596"]
[BlackElo "2749"]
[TimeControl "180+1"]
[EndTime "11:33:30 PDT"]
[Termination "anon102030 won by resignation"]

1. e4 {[%clk 0:02:50.7]} 1... e5 {[%clk 0:02:59.6]} 2. Nf3 {[%clk 0:02:49.9]}
2... Nc6 {[%clk 0:03:00.1]} 3. Bb5 {[%clk 0:02:50]} 3... Nge7 {[%clk 0:02:59.7]}
4. c3 {[%clk 0:02:49.2]} 4... d6 {[%clk 0:02:59.9]} 5. d4 {[%clk 0:02:48.3]}
5... Bd7 {[%clk 0:03:00.5]} 6. O-O {[%clk 0:02:47.5]} 6... Ng6 {[%clk
0:03:00.4]} 7. Be3 {[%clk 0:02:45.9]} 7... Be7 {[%clk 0:03:00.2]} 8. Nbd2 {[%clk
0:02:44.3]} 8... O-O {[%clk 0:03:00.2]} 9. d5 {[%clk 0:02:30.2]} 9... Nb8 {[%clk
0:02:59.9]} 10. Bxd7 {[%clk 0:02:29]} 10... Nxd7 {[%clk 0:03:00.8]} 11. c4
{[%clk 0:02:24.8]} 11... f5 {[%clk 0:03:00.1]} 12. exf5 {[%clk 0:02:23.9]} 12...
Rxf5 {[%clk 0:03:01]} 13. Ne4 {[%clk 0:02:22.9]} 13... a5 {[%clk 0:02:53.1]} 14.
Rc1 {[%clk 0:02:22.2]} 14... b6 {[%clk 0:02:51]} 15. b3 {[%clk 0:02:20.3]} 15...
Nc5 {[%clk 0:02:42.4]} 16. Nfd2 {[%clk 0:02:17.9]} 16... Rf7 {[%clk 0:02:29.2]}
17. Nxc5 {[%clk 0:02:11.3]} 17... bxc5 {[%clk 0:02:28.5]} 18. Ne4 {[%clk
0:02:11.8]} 18... Qd7 {[%clk 0:02:25.9]} 19. f3 {[%clk 0:02:09]} 19... Nh4
{[%clk 0:02:13.9]} 20. Bf2 {[%clk 0:01:41]} 20... Nf5 {[%clk 0:02:13.6]} 21. Rc2
{[%clk 0:01:38.2]} 21... a4 {[%clk 0:02:13.1]} 22. Qd3 {[%clk 0:01:31.6]} 22...
axb3 {[%clk 0:02:09.4]} 23. axb3 {[%clk 0:01:31.4]} 23... Rff8 {[%clk
0:02:02.1]} 24. Rb1 {[%clk 0:01:26.9]} 24... Rfb8 {[%clk 0:02:01.9]} 25. Rcb2
{[%clk 0:01:26.5]} 25... Ra3 {[%clk 0:01:48]} 26. Qd1 {[%clk 0:01:17.1]} 26...
Qc8 {[%clk 0:01:48.1]} 27. Qc2 {[%clk 0:00:53.4]} 27... h6 {[%clk 0:01:34.2]}
28. g3 {[%clk 0:00:53.2]} 28... Rba8 {[%clk 0:01:08.4]} 29. Kg2 {[%clk
0:00:52.8]} 29... Qd7 {[%clk 0:01:01.7]} 30. b4 {[%clk 0:00:50.3]} 30... Nd4
{[%clk 0:00:56.3]} 31. Bxd4 {[%clk 0:00:46.1]} 31... cxd4 {[%clk 0:00:57.2]} 32.
Rb3 {[%clk 0:00:42.4]} 32... Qa4 {[%clk 0:00:48.1]} 33. R1b2 {[%clk 0:00:40.2]}
33... Rxb3 {[%clk 0:00:44.7]} 34. Qxb3 {[%clk 0:00:37.5]} 34... Qxb3 {[%clk
0:00:42.7]} 35. Rxb3 {[%clk 0:00:37.7]} 35... Ra2+ {[%clk 0:00:38.2]} 36. Kh3
{[%clk 0:00:37.6]} 36... Rc2 {[%clk 0:00:37.8]} 37. c5 {[%clk 0:00:32.7]} 37...
dxc5 {[%clk 0:00:35.4]} 38. bxc5 {[%clk 0:00:32.6]} 38... Bxc5 {[%clk
0:00:36.3]} 39. Rb8+ {[%clk 0:00:30]} 39... Kh7 {[%clk 0:00:29.5]} 40. Rc8
{[%clk 0:00:21.1]} 40... d3 {[%clk 0:00:21.2]} 41. Rxc7 {[%clk 0:00:20.1]} 41...
Bg1 {[%clk 0:00:19.5]} 42. Rd7 {[%clk 0:00:13.4]} 42... d2 {[%clk 0:00:14.9]}
43. Nxd2 {[%clk 0:00:12.6]} 43... Rxd2 {[%clk 0:00:15.8]} 44. Kg4 {[%clk
0:00:12.4]} 44... Bxh2 {[%clk 0:00:14.4]} 45. d6 {[%clk 0:00:11.4]} 45... Rd4+
{[%clk 0:00:09.6]} 46. Kf5 {[%clk 0:00:10.3]} 46... Bxg3 {[%clk 0:00:09.3]} 47.
Ke6 {[%clk 0:00:10.5]} 47... e4 {[%clk 0:00:09.5]} 48. fxe4 {[%clk 0:00:09.2]}
48... Rxe4+ {[%clk 0:00:10.4]} 49. Kd5 {[%clk 0:00:09.7]} 49... Re1 {[%clk
0:00:10]} 50. Rf7 {[%clk 0:00:09.6]} 50... Rd1+ {[%clk 0:00:10.9]} 51. Ke6
{[%clk 0:00:08.8]} 51... Rxd6+ {[%clk 0:00:11.8]} 0-1

[Event "*** Titled Tuesday Blitz"]
[Site "Chess.com"]
[Date "2020.05.12"]
[Round "8"]
[White "Pintacara"]
[Black "Maksimus1998"]
[Result "0-1"]
[WhiteElo "2301"]
[BlackElo "2454"]
[TimeControl "180+1"]
[EndTime "11:33:31 PDT"]
[Termination "Maksimus1998 won on time"]

1. d4 {[%clk 0:03:00.9]} 1... Nf6 {[%clk 0:02:59.1]} 2. Bg5 {[%clk 0:03:01]}
2... d5 {[%clk 0:02:51.5]} 3. Bxf6 {[%clk 0:03:00.7]} 3... exf6 {[%clk
0:02:52.4]} 4. e3 {[%clk 0:03:00.7]} 4... Bd6 {[%clk 0:02:52.4]} 5. c4 {[%clk
0:03:00.9]} 5... dxc4 {[%clk 0:02:52.6]} 6. Bxc4 {[%clk 0:03:01.8]} 6... O-O
{[%clk 0:02:53.1]} 7. Nc3 {[%clk 0:03:02.2]} 7... c6 {[%clk 0:02:53]} 8. Nf3
{[%clk 0:03:01.5]} 8... f5 {[%clk 0:02:53.4]} 9. O-O {[%clk 0:02:59.2]} 9... Nd7
{[%clk 0:02:52.1]} 10. a4 {[%clk 0:02:58.8]} 10... a5 {[%clk 0:02:49.7]} 11. Qb3
{[%clk 0:02:54.2]} 11... Qe7 {[%clk 0:02:46.1]} 12. Rfe1 {[%clk 0:02:51.8]}
12... Nf6 {[%clk 0:02:43.9]} 13. h3 {[%clk 0:02:48.4]} 13... h6 {[%clk
0:02:43.1]} 14. Nd2 {[%clk 0:02:46.6]} 14... Ne4 {[%clk 0:02:41.5]} 15. Rad1
{[%clk 0:02:41.2]} 15... Qh4 {[%clk 0:02:25.1]} 16. Re2 {[%clk 0:02:30.1]} 16...
Nxd2 {[%clk 0:02:23.8]} 17. Rexd2 {[%clk 0:01:58.3]} 17... f4 {[%clk 0:02:20.8]}
18. exf4 {[%clk 0:01:53.6]} 18... Qxf4 {[%clk 0:02:20.1]} 19. g3 {[%clk
0:01:53.3]} 19... Qf3 {[%clk 0:02:08.9]} 20. Be2 {[%clk 0:01:44.8]} 20... Qf6
{[%clk 0:02:01.5]} 21. Ne4 {[%clk 0:01:42.6]} 21... Qg6 {[%clk 0:02:01.8]} 22.
Nxd6 {[%clk 0:01:40.1]} 22... Qxd6 {[%clk 0:02:01.5]} 23. Bf1 {[%clk 0:01:39.6]}
23... Be6 {[%clk 0:01:47.9]} 24. Qc3 {[%clk 0:01:29.5]} 24... Bd5 {[%clk
0:01:47.5]} 25. Re1 {[%clk 0:01:06.1]} 25... Qb4 {[%clk 0:01:45.6]} 26. Bd3
{[%clk 0:00:48]} 26... Qxa4 {[%clk 0:01:41.5]} 27. Bb1 {[%clk 0:00:42]} 27...
Qb3 {[%clk 0:01:38.2]} 28. Qc5 {[%clk 0:00:37.7]} 28... Qc4 {[%clk 0:01:33.5]}
29. Qd6 {[%clk 0:00:34.4]} 29... Rfe8 {[%clk 0:01:28.4]} 30. Red1 {[%clk
0:00:22]} 30... Qb4 {[%clk 0:01:20.2]} 31. Qf4 {[%clk 0:00:20.3]} 31... Qe7
{[%clk 0:01:14]} 32. h4 {[%clk 0:00:19.6]} 32... Qe1+ {[%clk 0:01:12.5]} 33. Kh2
{[%clk 0:00:20]} 33... Qe7 {[%clk 0:01:09.7]} 34. Qf5 {[%clk 0:00:19.4]} 34...
g6 {[%clk 0:01:09.4]} 35. Qf4 {[%clk 0:00:19.9]} 35... Kg7 {[%clk 0:01:09]} 36.
Bd3 {[%clk 0:00:17.5]} 36... Qf6 {[%clk 0:01:09.1]} 37. Qxf6+ {[%clk 0:00:16.4]}
37... Kxf6 {[%clk 0:01:09]} 38. f4 {[%clk 0:00:14.1]} 38... Re3 {[%clk 0:01:08]}
39. g4 {[%clk 0:00:12.9]} 39... Rae8 {[%clk 0:01:03.3]} 40. g5+ {[%clk
0:00:11.6]} 40... hxg5 {[%clk 0:01:04.2]} 41. fxg5+ {[%clk 0:00:12.1]} 41... Kg7
{[%clk 0:01:03.5]} 42. Rf2 {[%clk 0:00:10]} 42... Rh8 {[%clk 0:01:01.8]} 43. Rf4
{[%clk 0:00:10.4]} 43... Rf3 {[%clk 0:00:53.3]} 44. Rxf3 {[%clk 0:00:06.7]}
44... Bxf3 {[%clk 0:00:54.2]} 45. Rf1 {[%clk 0:00:07]} 45... Bd5 {[%clk
0:00:48.5]} 46. Kg3 {[%clk 0:00:07.4]} 46... Re8 {[%clk 0:00:48.1]} 47. Kf4
{[%clk 0:00:05.5]} 47... b5 {[%clk 0:00:43.5]} 48. Rc1 {[%clk 0:00:03.4]} 48...
a4 {[%clk 0:00:36.6]} 49. Rc5 {[%clk 0:00:02.5]} 49... Bh1 {[%clk 0:00:25.4]}
50. Bf1 {[%clk 0:00:01.1]} 50... Re1 {[%clk 0:00:24.6]} 51. Kg3 {[%clk
0:00:01.7]} 51... Rxf1 {[%clk 0:00:24.1]} 0-1

[Event "*** Titled Tuesday Blitz"]
[Site "Chess.com"]
[Date "2020.05.12"]
[Round "8"]
[White "Kensei26"]
[Black "atalz0"]
[Result "1/2-1/2"]
[WhiteElo "2246"]
[BlackElo "2436"]
[TimeControl "180+1"]
[EndTime "11:33:32 PDT"]
[Termination "Game drawn - insufficient material"]

1. e4 {[%clk 0:03:00.9]} 1... d5 {[%clk 0:02:59.7]} 2. exd5 {[%clk 0:02:59.9]}
2... Nf6 {[%clk 0:03:00.3]} 3. Nf3 {[%clk 0:02:57.8]} 3... Nxd5 {[%clk
0:03:00.3]} 4. h3 {[%clk 0:02:56.9]} 4... Bf5 {[%clk 0:02:56.3]} 5. d4 {[%clk
0:02:53.2]} 5... e6 {[%clk 0:02:55.4]} 6. Bd3 {[%clk 0:02:40.5]} 6... Bxd3
{[%clk 0:02:37.2]} 7. Qxd3 {[%clk 0:02:40.6]} 7... Be7 {[%clk 0:02:36.2]} 8. a3
{[%clk 0:02:40]} 8... O-O {[%clk 0:02:35.7]} 9. O-O {[%clk 0:02:40.1]} 9... c5
{[%clk 0:02:21.1]} 10. dxc5 {[%clk 0:02:39.6]} 10... Bxc5 {[%clk 0:02:18.7]} 11.
Nc3 {[%clk 0:02:38.7]} 11... Nxc3 {[%clk 0:02:10.6]} 12. Qxc3 {[%clk 0:02:39.6]}
12... Bb6 {[%clk 0:01:54.8]} 13. Be3 {[%clk 0:02:37.8]} 13... Nd7 {[%clk
0:01:45.1]} 14. Rad1 {[%clk 0:02:37.2]} 14... Rc8 {[%clk 0:01:37.3]} 15. Bxb6
{[%clk 0:02:37.1]} 15... Qxb6 {[%clk 0:01:34.9]} 16. Qb4 {[%clk 0:02:17.6]}
16... Qxb4 {[%clk 0:01:28.2]} 17. axb4 {[%clk 0:02:17.7]} 17... Nb6 {[%clk
0:01:25.7]} 18. c3 {[%clk 0:02:11]} 18... Rfd8 {[%clk 0:01:25.2]} 19. Rxd8+
{[%clk 0:02:07.9]} 19... Rxd8 {[%clk 0:01:24.9]} 20. Ra1 {[%clk 0:01:58.2]}
20... a6 {[%clk 0:01:24]} 21. Kf1 {[%clk 0:01:57.7]} 21... Nc4 {[%clk
0:01:02.9]} 22. Rb1 {[%clk 0:01:55.6]} 22... f6 {[%clk 0:00:53.8]} 23. Ke2
{[%clk 0:01:54.6]} 23... e5 {[%clk 0:00:51.5]} 24. b3 {[%clk 0:01:52.4]} 24...
Na3 {[%clk 0:00:49.7]} 25. Rd1 {[%clk 0:01:46.9]} 25... Rxd1 {[%clk 0:00:45.1]}
26. Kxd1 {[%clk 0:01:46.8]} 26... Nb5 {[%clk 0:00:39.5]} 27. Kd2 {[%clk
0:01:42.9]} 27... Kf7 {[%clk 0:00:39]} 28. Ne1 {[%clk 0:01:38.2]} 28... Nd6
{[%clk 0:00:28.7]} 29. f3 {[%clk 0:01:38.1]} 29... Ke6 {[%clk 0:00:27.7]} 30.
Nd3 {[%clk 0:01:37.6]} 30... b6 {[%clk 0:00:19.4]} 31. g4 {[%clk 0:01:36.6]}
31... e4 {[%clk 0:00:18.6]} 32. fxe4 {[%clk 0:01:28.4]} 32... Nxe4+ {[%clk
0:00:19.5]} 33. Kc2 {[%clk 0:01:26.1]} 33... Kd5 {[%clk 0:00:19.6]} 34. c4+
{[%clk 0:01:25.7]} 34... Kd4 {[%clk 0:00:19.2]} 35. Nf4 {[%clk 0:01:25.3]} 35...
Ke5 {[%clk 0:00:14.3]} 36. Nd5 {[%clk 0:01:24.5]} 36... b5 {[%clk 0:00:13.2]}
37. Nc7 {[%clk 0:01:23.2]} 37... bxc4 {[%clk 0:00:10.2]} 38. bxc4 {[%clk
0:01:24.1]} 38... Kd4 {[%clk 0:00:10.4]} 39. b5 {[%clk 0:01:08.9]} 39... axb5
{[%clk 0:00:08.7]} 40. cxb5 {[%clk 0:01:07.6]} 40... Kc5 {[%clk 0:00:09]} 41.
Ne6+ {[%clk 0:01:06.9]} 41... Kxb5 {[%clk 0:00:09.2]} 42. Nxg7 {[%clk
0:01:07.5]} 42... Kc4 {[%clk 0:00:08.4]} 43. Nf5 {[%clk 0:01:00.8]} 43... Kd5
{[%clk 0:00:06.5]} 44. Ne3+ {[%clk 0:00:47.9]} 44... Ke5 {[%clk 0:00:05.9]} 45.
Ng2 {[%clk 0:00:47.9]} 45... Nf2 {[%clk 0:00:05.3]} 46. Kd2 {[%clk 0:00:45.6]}
46... Nxh3 {[%clk 0:00:05.4]} 47. Ke3 {[%clk 0:00:45.6]} 47... Ng5 {[%clk
0:00:04.2]} 48. Nf4 {[%clk 0:00:43.2]} 48... Ne6 {[%clk 0:00:04.1]} 49. Nd3+
{[%clk 0:00:42.1]} 49... Kd5 {[%clk 0:00:04.4]} 50. Kf3 {[%clk 0:00:40.1]} 50...
Nd4+ {[%clk 0:00:04]} 51. Kf4 {[%clk 0:00:39.1]} 51... Ke6 {[%clk 0:00:03.2]}
52. Nc5+ {[%clk 0:00:38.5]} 52... Kf7 {[%clk 0:00:03.4]} 53. Ne4 {[%clk
0:00:38]} 53... Ne6+ {[%clk 0:00:03.8]} 54. Kg3 {[%clk 0:00:36.9]} 54... Ng7
{[%clk 0:00:04.4]} 55. Nf2 {[%clk 0:00:36.7]} 55... Kg6 {[%clk 0:00:04.6]} 56.
Nd3 {[%clk 0:00:36.4]} 56... Ne6 {[%clk 0:00:04.3]} 57. Kf3 {[%clk 0:00:34.5]}
57... Ng5+ {[%clk 0:00:04.5]} 58. Kg3 {[%clk 0:00:34.2]} 58... h5 {[%clk
0:00:05.1]} 59. Nf4+ {[%clk 0:00:33.9]} 59... Kh6 {[%clk 0:00:04.8]} 60. Nxh5
{[%clk 0:00:34.8]} 60... f5 {[%clk 0:00:04.9]} 61. gxf5 {[%clk 0:00:33.9]} 61...
Kxh5 {[%clk 0:00:05.3]} 62. f6 {[%clk 0:00:33.8]} 62... Nf7 {[%clk 0:00:06]} 63.
Kf4 {[%clk 0:00:33.9]} 63... Kg6 {[%clk 0:00:06.9]} 64. Ke4 {[%clk 0:00:34]}
64... Kxf6 {[%clk 0:00:06.3]} 1/2-1/2

[Event "*** Titled Tuesday Blitz"]
[Site "Chess.com"]
[Date "2020.05.12"]
[Round "8"]
[White "VladDobrov"]
[Black "GothamChess"]
[Result "1-0"]
[WhiteElo "2771"]
[BlackElo "2602"]
[TimeControl "180+1"]
[EndTime "11:33:33 PDT"]
[Termination "VladDobrov won on time"]

1. d4 {[%clk 0:03:00.9]} 1... e6 {[%clk 0:02:57.3]} 2. c4 {[%clk 0:03:01.2]}
2... b6 {[%clk 0:02:57.1]} 3. Nf3 {[%clk 0:03:01.1]} 3... Bb7 {[%clk 0:02:57.2]}
4. Nc3 {[%clk 0:03:01.7]} 4... Bb4 {[%clk 0:02:56.7]} 5. Qc2 {[%clk 0:03:02]}
5... f5 {[%clk 0:02:56.1]} 6. a3 {[%clk 0:03:02.9]} 6... Bxc3+ {[%clk
0:02:56.1]} 7. Qxc3 {[%clk 0:03:03.8]} 7... Nf6 {[%clk 0:02:56.9]} 8. e3 {[%clk
0:03:04.6]} 8... Ne4 {[%clk 0:02:56.8]} 9. Qc2 {[%clk 0:03:04.6]} 9... d6 {[%clk
0:02:57.2]} 10. Be2 {[%clk 0:03:05.5]} 10... Nd7 {[%clk 0:02:57.4]} 11. O-O
{[%clk 0:03:06.4]} 11... Ndf6 {[%clk 0:02:57.6]} 12. b4 {[%clk 0:03:07.3]} 12...
O-O {[%clk 0:02:57.8]} 13. Nd2 {[%clk 0:03:07.6]} 13... Nxd2 {[%clk 0:02:52.9]}
14. Bxd2 {[%clk 0:03:08.5]} 14... Ne4 {[%clk 0:02:49.5]} 15. Bc1 {[%clk
0:03:08.8]} 15... Qh4 {[%clk 0:02:47]} 16. f3 {[%clk 0:03:08.2]} 16... Nf6
{[%clk 0:02:47.1]} 17. Rf2 {[%clk 0:03:06]} 17... Rae8 {[%clk 0:02:37.1]} 18. a4
{[%clk 0:02:59.1]} 18... e5 {[%clk 0:02:33.8]} 19. d5 {[%clk 0:02:58.2]} 19...
f4 {[%clk 0:02:28.8]} 20. exf4 {[%clk 0:02:54.5]} 20... exf4 {[%clk 0:02:28.4]}
21. Bb2 {[%clk 0:02:54.9]} 21... Re3 {[%clk 0:02:17.7]} 22. Bd4 {[%clk
0:02:50.7]} 22... Rfe8 {[%clk 0:02:15.6]} 23. a5 {[%clk 0:01:38.7]} 23... Bc8
{[%clk 0:02:10.5]} 24. axb6 {[%clk 0:01:37.6]} 24... axb6 {[%clk 0:02:11.4]} 25.
Ra7 {[%clk 0:01:36.6]} 25... R8e7 {[%clk 0:01:56.5]} 26. c5 {[%clk 0:01:26.6]}
26... bxc5 {[%clk 0:01:51.3]} 27. bxc5 {[%clk 0:01:26.6]} 27... Bf5 {[%clk
0:00:55.2]} 28. Qb2 {[%clk 0:01:10.4]} 28... Nxd5 {[%clk 0:00:30.7]} 29. cxd6
{[%clk 0:01:09.6]} 29... cxd6 {[%clk 0:00:27.6]} 30. Rxe7 {[%clk 0:00:55.9]}
30... Rxe7 {[%clk 0:00:21.4]} 31. Qb8+ {[%clk 0:00:55.2]} 31... Kf7 {[%clk
0:00:19.1]} 32. Qxd6 {[%clk 0:00:55.5]} 32... Rd7 {[%clk 0:00:11.7]} 33. Qe5
{[%clk 0:00:55.3]} 33... Qf6 {[%clk 0:00:08.9]} 34. Bc4 {[%clk 0:00:51.8]} 34...
Qxe5 {[%clk 0:00:08.5]} 35. Bxe5 {[%clk 0:00:52.7]} 35... g5 {[%clk 0:00:07.9]}
36. h4 {[%clk 0:00:50.9]} 36... h6 {[%clk 0:00:07.6]} 37. Ra2 {[%clk 0:00:49.8]}
37... Be6 {[%clk 0:00:07.3]} 38. Ra8 {[%clk 0:00:15.5]} 38... Ne3 {[%clk
0:00:04.1]} 39. Bxe6+ {[%clk 0:00:11.1]} 39... Kxe6 {[%clk 0:00:05]} 40. Re8+
{[%clk 0:00:10.9]} 40... Kf5 {[%clk 0:00:03.1]} 41. hxg5 {[%clk 0:00:08.9]}
41... hxg5 {[%clk 0:00:02.6]} 42. g4+ {[%clk 0:00:09.3]} 42... Kg6 {[%clk
0:00:01.8]} 43. Re6+ {[%clk 0:00:05.2]} 43... Kh7 {[%clk 0:00:01.2]} 44. Bf6
{[%clk 0:00:04.3]} 44... Rd1+ {[%clk 0:00:01.4]} 45. Kf2 {[%clk 0:00:04.8]}
45... Rd2+ {[%clk 0:00:01.6]} 46. Ke1 {[%clk 0:00:05.2]} 46... Rg2 {[%clk
0:00:01.6]} 47. Bxg5 {[%clk 0:00:04.9]} 47... Nc2+ {[%clk 0:00:02.2]} 48. Kf1
{[%clk 0:00:05.2]} 48... Ne3+ {[%clk 0:00:02.6]} 49. Rxe3 {[%clk 0:00:05.3]} 1-0